bitfinex/quotes_BTCUSD_20250530
["timestamp","ask_amount","ask_price","bid_price","bid_amount"]
[1748618167811,0.04130386,105600.0,105590.0,3.53973411]
[1748618168026,0.04130386,105600.0,105590.0,3.45658511]
[1748618168245,0.04130386,105600.0,105590.0,1.62828945]
[1748618168486,0.04130386,105600.0,105590.0,3.40745499]
[1748618168874,0.04130386,105600.0,105590.0,3.40745574]
[1748618169314,0.04130386,105600.0,105590.0,3.36934474]
[1748618169540,0.04130386,105600.0,105590.0,3.37434474]
[1748618169793,0.04130386,105600.0,105590.0,3.37434581]
[1748618170047,0.04130386,105600.0,105590.0,3.36675011]
[1748618170257,0.04130386,105600.0,105590.0,3.16020911]
[1748618170470,0.04130386,105600.0,105590.0,2.85776144]
[1748618170688,0.04130386,105600.0,105590.0,2.86076144]
[1748618170922,0.04130386,105600.0,105590.0,2.86076066]
[1748618171138,0.04130386,105600.0,105590.0,2.84455866]
[1748618171352,0.04130386,105600.0,105590.0,3.18652633]
[1748618171826,0.04130386,105600.0,105590.0,3.04972711]
[1748618172309,0.04130386,105600.0,105590.0,3.04313316]
[1748618172554,0.04130386,105600.0,105590.0,3.26934701]
[1748618173446,0.04130386,105600.0,105590.0,3.33713229]
[1748618173680,0.04130386,105600.0,105590.0,3.33713241]
[1748618173940,0.04130386,105600.0,105590.0,3.33053616]
[1748618174163,0.04130386,105600.0,105590.0,3.3371324]
[1748618174380,0.04130386,105600.0,105590.0,3.1240674]
[1748618174814,0.04130386,105600.0,105590.0,3.12406845]
[1748618175043,0.01893337,105630.0,105620.0,0.35454085]
[1748618175385,0.02839966,105630.0,105620.0,0.83903209]
[1748618175599,0.02854649,105630.0,105620.0,0.83903108]
[1748618175817,0.21788663,105630.0,105620.0,0.83903095]
[1748618176042,0.02854649,105630.0,105620.0,0.83903095]
[1748618176297,0.2084207,105630.0,105620.0,0.83902972]
[1748618176524,0.2239207,105630.0,105620.0,0.84002972]
[1748618177023,0.23338725,105630.0,105620.0,0.84202972]
[1748618177299,0.2084207,105630.0,105620.0,0.8354348]
[1748618177511,0.19895388,105630.0,105620.0,0.84203097]
[1748618177725,0.19895388,105630.0,105620.0,0.8420298]
[1748618177956,0.19895388,105630.0,105620.0,0.84202959]
[1748618178168,0.21545388,105630.0,105620.0,0.8354348]
[1748618178382,0.21545388,105630.0,105620.0,0.84202888]
[1748618179046,0.21545388,105630.0,105620.0,0.84202912]
[1748618179277,0.21545388,105630.0,105620.0,0.84202927]
[1748618179504,0.21545388,105630.0,105620.0,0.84202913]
[1748618179756,0.21545388,105630.0,105620.0,0.8354348]
[1748618179976,0.21545388,105630.0,105620.0,0.84202914]
[1748618181380,0.21545388,105630.0,105620.0,0.54706838]
[1748618181632,0.23095388,105630.0,105620.0,0.10147358]
[1748618182330,0.23095388,105630.0,105620.0,0.10147751]
[1748618182573,0.23095388,105630.0,105620.0,0.003]
[1748618182803,0.23095388,105630.0,105620.0,0.002]
[1748618183295,0.23052579,105620.0,105610.0,0.43188]
[1748618184655,0.23052579,105620.0,105610.0,0.43288]
[1748618185318,0.23052579,105620.0,105610.0,0.72792]
[1748618185783,0.23052579,105620.0,105610.0,0.341]
[1748618185999,0.23052579,105620.0,105610.0,0.72892]
[1748618187311,0.23052579,105620.0,105610.0,0.342]
[1748618187539,0.23052579,105620.0,105610.0,0.002]
[1748618187757,0.32157974,105620.0,105610.0,0.002]
[1748618188475,0.330646,105620.0,105610.0,0.002]
[1748618188921,0.330646,105620.0,105610.0,0.001]
[1748618189132,0.32357974,105620.0,105610.0,0.001]
[1748618189344,0.32157974,105620.0,105610.0,0.001]
[1748618189778,0.24053268,105600.0,105590.0,0.34]
[1748618197006,0.24053268,105600.0,105590.0,0.54]
[1748618200353,0.24053268,105600.0,105590.0,0.55754498]
[1748618200571,0.24053268,105600.0,105590.0,0.55754501]
[1748618200847,0.24053268,105600.0,105590.0,0.55754675]
[1748618201412,0.24053268,105600.0,105590.0,0.55754673]
[1748618202070,0.24053268,105600.0,105590.0,0.2]
[1748618202296,0.33158663,105600.0,105590.0,0.2]
[1748618202541,0.43346663,105600.0,105590.0,0.2]
[1748618202798,0.19897651,105540.0,105530.0,0.06211747]
[1748618203033,0.19897651,105540.0,105530.0,0.13864526]
[1748618203266,0.22317651,105540.0,105530.0,0.03001747]
[1748618203498,0.22317651,105540.0,105510.0,0.07578987]
[1748618203499,0.20849063,105520.0,105510.0,0.07578987]
[1748618203723,0.20849063,105520.0,105510.0,0.16684382]
[1748618203950,0.19903308,105510.0,105500.0,0.09208]
[1748618204170,0.00947723,105510.0,105500.0,0.51456004]
[1748618204394,0.19901156,105530.0,105510.0,0.3564]
[1748618204653,0.01895248,105520.0,105510.0,1.37172847]
[1748618204878,0.22744347,105520.0,105510.0,0.91010382]
[1748618205112,0.20849099,105520.0,105510.0,0.43105395]
[1748618205817,0.20849099,105520.0,105510.0,0.4455948]
[1748618206035,0.20849099,105520.0,105510.0,0.4610948]
[1748618206262,0.20849099,105520.0,105510.0,0.4455948]
[1748618206483,0.20849099,105520.0,105510.0,0.4465948]
[1748618206931,0.20849099,105520.0,105510.0,0.4475948]
[1748618207656,0.20849099,105520.0,105510.0,0.002]
[1748618210762,0.20849099,105520.0,105510.0,0.01137671]
[1748618211012,0.20849099,105520.0,105510.0,0.002]
[1748618215602,0.20849099,105520.0,105510.0,0.01165566]
[1748618216754,0.20849099,105520.0,105510.0,0.002]
[1748618216977,0.33134494,105520.0,105510.0,0.002]
[1748618217422,0.22419099,105520.0,105510.0,0.002]
[1748618217659,0.20849099,105520.0,105510.0,0.002]
[1748618217912,0.20849099,105520.0,105510.0,0.0185]
[1748618218128,0.20849099,105520.0,105510.0,0.0175]
[1748618218338,0.20849099,105520.0,105510.0,0.001]
[1748618218577,0.19903308,105510.0,105500.0,0.91012737]
[1748618218784,0.19903308,105510.0,105500.0,1.00118132]
[1748618218999,0.19903308,105510.0,105500.0,1.01870162]
[1748618219218,0.19903308,105510.0,105500.0,0.48056387]
[1748618219433,0.19903308,105510.0,105500.0,0.86876427]
[1748618219653,0.19903308,105510.0,105500.0,0.86876425]
[1748618219878,0.19903308,105510.0,105500.0,1.40890182]
[1748618220138,0.19903308,105510.0,105500.0,1.40890199]
[1748618220567,0.19903308,105510.0,105500.0,0.87076424]
[1748618220783,0.19903308,105510.0,105500.0,0.36001029]
[1748618221003,0.19903308,105510.0,105500.0,0.36001272]
[1748618221227,0.19903308,105510.0,105500.0,0.35125059]
[1748618221448,0.19903308,105510.0,105500.0,0.34248962]
[1748618221658,0.19903308,105510.0,105500.0,0.35125153]
[1748618221875,0.19903308,105510.0,105500.0,0.35125137]
[1748618222322,0.19903308,105510.0,105500.0,0.35125212]
[1748618222723,0.19903308,105510.0,105500.0,0.36080783]
[1748618224064,0.19903308,105510.0,105500.0,0.36080853]
[1748618225416,0.19903308,105510.0,105500.0,0.3608133]
[1748618225664,0.19903308,105510.0,105500.0,0.36081373]
[1748618225887,0.19903308,105510.0,105500.0,0.3608145]
[1748618226378,0.19903308,105510.0,105500.0,0.0208145]
[1748618226630,0.19903308,105510.0,105500.0,0.02082102]
[1748618227329,0.32208703,105510.0,105500.0,0.01127307]
[1748618227581,0.32208703,105510.0,105500.0,0.00248962]
[1748618228469,0.32208703,105510.0,105500.0,0.00148962]
[1748618228683,0.33208703,105510.0,105500.0,0.00048962]
[1748618229363,0.3418206,105510.0,105500.0,0.00048962]
[1748618229790,0.4339406,105510.0,105500.0,0.00048962]
[1748618230238,0.44494285,105510.0,105500.0,0.00048962]
[1748618230470,0.42520928,105510.0,105500.0,0.00048962]
[1748618230906,0.61436928,105510.0,105500.0,0.00048962]
[1748618231346,0.62086703,105510.0,105500.0,0.00048962]
[1748618231807,0.63049584,105510.0,105500.0,0.00048962]
[1748618232024,0.62986928,105510.0,105500.0,0.00048962]
[1748618234305,0.33298928,105510.0,105500.0,0.00048962]
[1748618234515,0.61436928,105510.0,105500.0,0.00048962]
[1748618235184,0.63046928,105510.0,105500.0,0.00048962]
[1748618236318,0.64046928,105510.0,105500.0,0.00048962]
[1748618236548,1.02046928,105510.0,105500.0,0.00048962]
[1748618236774,1.50836928,105510.0,105500.0,0.00048962]
[1748618236995,0.20860925,105460.0,105450.0,0.0159]
[1748618237214,0.20860925,105460.0,105450.0,0.02488965]
[1748618237432,0.20860925,105460.0,105450.0,0.37420287]
[1748618237663,0.20860925,105460.0,105450.0,0.03419839]
[1748618237898,0.20860925,105460.0,105450.0,0.00898608]
[1748618238567,0.20860925,105460.0,105450.0,0.00014683]
[1748618238793,0.20860925,105460.0,105450.0,0.34014683]
[1748618240633,0.20860925,105460.0,105450.0,0.34974193]
[1748618242142,0.20860925,105460.0,105450.0,0.38164193]
[1748618246295,0.18757314,105460.0,105450.0,0.38164193]
[1748618247383,0.18757314,105460.0,105450.0,0.48723673]
[1748618248263,0.18757314,105460.0,105450.0,1.11950978]
[1748618248480,0.17809133,105460.0,105450.0,1.11950978]
[1748618248699,0.17809133,105460.0,105450.0,0.58015673]
[1748618252760,0.17809133,105460.0,105450.0,0.56561588]
[1748618253204,0.17809133,105460.0,105450.0,0.86357588]
[1748618253419,0.13809133,105460.0,105450.0,0.86357588]
[1748618254407,0.13809133,105460.0,105450.0,0.47269588]
[1748618254621,0.13809133,105460.0,105450.0,0.86341588]
[1748618260335,0.09809133,105460.0,105450.0,0.86341588]
[1748618260779,0.09809133,105460.0,105450.0,1.41715464]
[1748618262556,0.01896227,105470.0,105460.0,0.0311]
[1748618262781,0.01896164,105470.0,105460.0,0.67826294]
[1748618263004,0.21807011,105470.0,105460.0,0.67589271]
[1748618263219,0.21807056,105470.0,105460.0,0.67589271]
[1748618263655,0.19910856,105470.0,105460.0,0.67589271]
[1748618263936,0.19062738,105470.0,105460.0,0.1366948]
[1748618264153,0.19062738,105470.0,105460.0,0.67589271]
[1748618264382,0.18962738,105470.0,105460.0,0.67589271]
[1748618266582,0.18962738,105470.0,105460.0,0.0161]
[1748618266832,0.19912744,105460.0,105450.0,0.13388193]
[1748618267050,0.19912744,105460.0,105450.0,0.86357588]
[1748618267262,0.19912744,105460.0,105450.0,0.56493588]
[1748618267486,0.15912744,105460.0,105450.0,0.56493588]
[1748618267704,0.16860952,105460.0,105450.0,0.56493588]
[1748618268140,0.16860952,105460.0,105450.0,0.55534078]
[1748618269019,0.16860952,105460.0,105450.0,0.55734078]
[1748618269451,0.16860952,105460.0,105450.0,0.52904078]
[1748618269668,0.16860952,105460.0,105450.0,0.54414078]
[1748618272115,0.16860952,105460.0,105450.0,0.56024078]
[1748618274555,0.12860952,105460.0,105450.0,0.56024078]
[1748618275732,0.12860952,105460.0,105450.0,1.11397954]
[1748618275948,0.13809151,105460.0,105450.0,1.11397954]
[1748618277039,0.12860952,105460.0,105450.0,1.11397954]
[1748618278452,0.12860952,105460.0,105450.0,0.87238163]
[1748618279474,0.12860952,105460.0,105450.0,0.87242163]
[1748618281574,0.08860952,105460.0,105450.0,0.87242163]
[1748618282470,0.08860952,105460.0,105450.0,1.41161954]
[1748618282913,0.08860952,105460.0,105450.0,0.87242163]
[1748618283357,0.08860952,105460.0,105450.0,0.48094163]
[1748618283605,0.08860952,105460.0,105450.0,0.85616163]
[1748618284067,0.08860952,105460.0,105450.0,0.46484163]
[1748618284256,0.08860952,105460.0,105450.0,0.85608163]
[1748618284485,0.08860952,105460.0,105450.0,0.34414683]
[1748618284674,0.08860952,105460.0,105450.0,0.43798683]
[1748618285410,0.08860952,105460.0,105450.0,0.45418683]
[1748618289009,0.08860952,105460.0,105450.0,0.47008683]
[1748618289276,0.08860952,105460.0,105450.0,1.00928474]
[1748618289499,0.04860952,105460.0,105450.0,1.00928474]
[1748618292208,0.04860952,105460.0,105450.0,1.11487954]
[1748618292630,0.04860952,105460.0,105450.0,1.02103954]
[1748618292838,0.04860952,105460.0,105450.0,1.41139954]
[1748618296368,0.00860952,105460.0,105450.0,1.41139954]
[1748618296585,0.19825488,105460.0,105450.0,1.41139954]
[1748618297797,0.19825488,105460.0,105450.0,1.41099954]
[1748618298041,0.19825488,105460.0,105450.0,0.87180163]
[1748618298283,0.19825488,105460.0,105450.0,1.41099954]
[1748618298788,0.19825488,105460.0,105450.0,1.42873654]
[1748618299471,0.19825488,105460.0,105450.0,1.4381249]
[1748618300338,0.19825488,105460.0,105450.0,1.42038953]
[1748618300781,0.19825488,105460.0,105450.0,1.43813119]
[1748618301869,0.19825488,105460.0,105450.0,1.43813402]
[1748618302091,0.19825488,105460.0,105450.0,1.42038953]
[1748618302317,0.19825488,105460.0,105450.0,1.43813478]
[1748618302996,0.19825488,105460.0,105450.0,1.43645284]
[1748618303454,0.15825488,105460.0,105450.0,1.41870953]
[1748618303684,0.16773696,105460.0,105450.0,1.43645092]
[1748618304829,0.16773696,105460.0,105450.0,1.43645066]
[1748618305045,0.16773696,105460.0,105450.0,1.43644644]
[1748618305259,0.16773696,105460.0,105450.0,1.43644674]
[1748618305686,0.16773696,105460.0,105450.0,1.43644646]
[1748618305924,0.16773696,105460.0,105450.0,1.43644648]
[1748618306139,0.16773696,105460.0,105450.0,1.43644484]
[1748618306591,0.16773696,105460.0,105450.0,1.43644462]
[1748618307229,0.16773696,105460.0,105450.0,1.41870953]
[1748618307448,0.16773696,105460.0,105450.0,1.43644296]
[1748618307669,0.16773696,105460.0,105450.0,1.43644294]
[1748618307884,0.16773696,105460.0,105450.0,1.43644285]
[1748618308105,0.16773696,105460.0,105450.0,1.43644286]
[1748618308554,0.16773696,105460.0,105450.0,1.43644182]
[1748618308769,0.16773696,105460.0,105450.0,1.43644173]
[1748618308995,0.16773696,105460.0,105450.0,1.43644171]
[1748618309416,0.16773696,105460.0,105450.0,1.41870953]
[1748618309887,0.16773696,105460.0,105450.0,1.43643895]
[1748618310118,0.16773696,105460.0,105450.0,1.41870953]
[1748618310366,0.16773696,105460.0,105450.0,1.43644062]
[1748618310579,0.12773696,105460.0,105450.0,1.43644179]
[1748618310797,0.12773696,105460.0,105450.0,1.41870953]
[1748618311277,0.12773696,105460.0,105450.0,1.43644149]
[1748618311495,0.12773696,105460.0,105450.0,1.41870953]
[1748618311719,0.12773696,105460.0,105450.0,1.12286953]
[1748618311930,0.12773696,105460.0,105450.0,1.41854953]
[1748618313038,0.16003696,105460.0,105450.0,0.01353682]
[1748618313266,0.16003696,105460.0,105450.0,0.40161682]
[1748618313487,0.14403696,105460.0,105450.0,0.46372149]
[1748618313715,0.14403696,105460.0,105450.0,0.44597682]
[1748618314378,0.15953696,105460.0,105450.0,0.35353682]
[1748618315248,0.12773696,105460.0,105450.0,0.35353682]
[1748618315471,0.12773696,105460.0,105450.0,0.36963682]
[1748618315907,0.12773696,105460.0,105450.0,0.92423473]
[1748618317624,0.18962738,105470.0,105460.0,0.0308]
[1748618317835,0.14962738,105470.0,105460.0,0.56999791]
[1748618318298,0.14962738,105470.0,105460.0,0.41904]
[1748618320124,0.14962738,105470.0,105460.0,0.12324]
[1748618321397,0.14962738,105470.0,105460.0,0.0308]
[1748618323617,0.14962738,105470.0,105460.0,0.0153]
[1748618324812,0.10962738,105470.0,105460.0,0.0153]
[1748618325492,0.10962738,105470.0,105460.0,0.03303411]
[1748618326159,0.10962738,105470.0,105460.0,0.01773411]
[1748618326382,0.19912753,105460.0,105450.0,1.41384953]
[1748618326647,0.19912753,105460.0,105450.0,1.43158381]
[1748618326870,0.19912753,105460.0,105450.0,1.13590177]
[1748618327102,0.19912753,105460.0,105450.0,1.43154175]
[1748618327349,0.19912753,105460.0,105450.0,0.50426384]
[1748618327577,0.19912753,105460.0,105450.0,1.41352953]
[1748618327823,0.19912753,105460.0,105450.0,1.43126496]
[1748618328050,0.19912753,105460.0,105450.0,1.43526585]
[1748618328276,0.19912753,105460.0,105450.0,1.43526577]
[1748618328526,0.19912753,105460.0,105450.0,0.50826786]
[1748618328762,0.19912753,105460.0,105450.0,0.89606786]
[1748618329442,0.19912753,105460.0,105450.0,0.87833162]
[1748618329693,0.19912753,105460.0,105450.0,0.89606974]
[1748618329924,0.19912753,105460.0,105450.0,0.89607141]
[1748618330161,0.19912753,105460.0,105450.0,0.89607227]
[1748618330619,0.19912753,105460.0,105450.0,1.43527185]
[1748618331086,0.20860952,105460.0,105450.0,1.43526621]
[1748618331521,0.20860952,105460.0,105450.0,1.41752953]
[1748618331712,0.20860952,105460.0,105450.0,1.43525735]
[1748618331988,0.17809169,105460.0,105450.0,1.4352567]
[1748618332216,0.17809169,105460.0,105450.0,1.43525652]
[1748618333212,0.17809169,105460.0,105450.0,1.43525608]
[1748618333757,0.17809169,105460.0,105450.0,1.43525501]
[1748618334666,0.17809169,105460.0,105450.0,1.41752953]
[1748618334887,0.17809169,105460.0,105450.0,1.43525546]
[1748618335319,0.17809169,105460.0,105450.0,1.43525278]
[1748618335578,0.17809169,105460.0,105450.0,0.89605504]
[1748618335811,0.17809169,105460.0,105450.0,1.43525295]
[1748618336042,0.1686097,105460.0,105450.0,0.89605512]
[1748618336759,0.1686097,105460.0,105450.0,0.87833162]
[1748618336980,0.1686097,105460.0,105450.0,0.89605457]
[1748618337208,0.1686097,105460.0,105450.0,0.87833162]
[1748618337437,0.1686097,105460.0,105450.0,0.89605463]
[1748618337658,0.1686097,105460.0,105450.0,0.60041124]
[1748618337901,0.1686097,105460.0,105450.0,0.89605124]
[1748618338353,0.1686097,105460.0,105450.0,0.50825285]
[1748618338590,0.1686097,105460.0,105450.0,0.89605285]
[1748618338815,0.1686097,105460.0,105450.0,0.87833162]
[1748618339037,0.1286097,105460.0,105450.0,0.89605421]
[1748618339284,0.1286097,105460.0,105450.0,0.8960532]
[1748618340473,0.1286097,105460.0,105450.0,0.89605511]
[1748618340693,0.1286097,105460.0,105450.0,0.87833162]
[1748618340943,0.1286097,105460.0,105450.0,0.89605543]
[1748618341590,0.1286097,105460.0,105450.0,0.88075543]
[1748618342101,0.1286097,105460.0,105450.0,0.88075645]
[1748618342318,0.1286097,105460.0,105450.0,0.86303162]
[1748618342548,0.1611097,105460.0,105450.0,0.37126186]
[1748618342768,0.1611097,105460.0,105450.0,0.03126564]
[1748618342998,0.25216365,105460.0,105450.0,0.02187565]
[1748618343235,0.97587736,105460.0,105450.0,0.00414683]
[1748618343463,0.96587736,105460.0,105450.0,0.00414683]
[1748618343701,0.59914632,105450.0,105440.0,0.013]
[1748618343944,0.77236027,105450.0,105440.0,0.01314692]
[1748618344161,0.88664112,105450.0,105440.0,0.01314692]
[1748618344390,0.2087082,105410.0,105400.0,4e-05]
[1748618344620,0.2087082,105410.0,105400.0,0.00053035]
[1748618344871,0.2087082,105410.0,105400.0,0.64101004]
[1748618345086,0.2087082,105410.0,105400.0,0.98761813]
[1748618345534,0.2087082,105410.0,105400.0,0.44842022]
[1748618345752,0.2087082,105410.0,105400.0,0.43242022]
[1748618346624,0.2087082,105410.0,105400.0,0.35663035]
[1748618347306,0.2097082,105410.0,105400.0,0.3663252]
[1748618347983,0.2097082,105410.0,105400.0,0.3502252]
[1748618348697,0.21919406,105410.0,105400.0,1.02741791]
[1748618348908,0.22868073,105410.0,105400.0,1.41541791]
[1748618349344,0.21919469,105410.0,105400.0,1.41541791]
[1748618349816,0.20970838,105410.0,105400.0,1.41541791]
[1748618350038,0.20022198,105410.0,105400.0,1.41541791]
[1748618350272,0.01048613,105410.0,105400.0,1.60517123]
[1748618350501,0.01048613,105410.0,105400.0,1.93916028]
[1748618350717,0.001,105410.0,105400.0,1.93916028]
[1748618350934,0.01997226,105410.0,105400.0,1.93916046]
[1748618351161,0.01997226,105410.0,105400.0,1.94864794]
[1748618351379,0.03794533,105410.0,105400.0,1.65511691]
[1748618351601,0.02845866,105410.0,105400.0,1.56479157]
[1748618351831,0.02845866,105410.0,105400.0,1.55530391]
[1748618352309,0.02845866,105410.0,105400.0,1.56379157]
[1748618352539,0.01897226,105410.0,105400.0,1.74525723]
[1748618352756,0.02845866,105410.0,105400.0,1.75474489]
[1748618352977,0.01897226,105410.0,105400.0,1.76423246]
[1748618353189,0.02845866,105410.0,105400.0,1.75474489]
[1748618353404,0.00948604,105410.0,105400.0,1.76423246]
[1748618353625,0.20870022,105430.0,105420.0,0.37064085]
[1748618353841,0.20870022,105430.0,105420.0,1.10899271]
[1748618354272,0.20870022,105430.0,105420.0,0.5697948]
[1748618354989,0.20121553,105430.0,105420.0,0.5538948]
[1748618355202,0.20321553,105430.0,105420.0,0.5692948]
[1748618359780,0.21270022,105430.0,105420.0,1.10849271]
[1748618360233,0.21270022,105430.0,105420.0,0.5692948]
[1748618360451,0.21270022,105430.0,105420.0,0.8500148]
[1748618362935,0.21270022,105430.0,105420.0,0.5538948]
[1748618363162,0.21270022,105430.0,105420.0,0.8497748]
[1748618365460,0.21270022,105430.0,105420.0,0.8658748]
[1748618365939,0.01348469,105430.0,105420.0,0.8658748]
[1748618366156,0.02296857,105430.0,105420.0,1.40507271]
[1748618366382,0.04193777,105430.0,105420.0,1.40507271]
[1748618366612,0.05142264,105430.0,105420.0,1.40507271]
[1748618366838,0.05142345,105430.0,105420.0,1.40507271]
[1748618367062,0.04942345,105430.0,105420.0,1.40507271]
[1748618367297,0.03045407,105430.0,105420.0,1.40507271]
[1748618367569,0.22015339,105430.0,105420.0,1.40507271]
[1748618367814,0.0209692,105430.0,105420.0,1.40507271]
[1748618368720,0.0189692,105430.0,105420.0,1.40507271]
[1748618368935,0.0189692,105430.0,105420.0,1.40607271]
[1748618369158,0.0189692,105430.0,105420.0,1.40707271]
[1748618371141,0.0189692,105430.0,105420.0,0.8678748]
[1748618371374,0.02845407,105430.0,105420.0,1.11119271]
[1748618371651,0.02845407,105430.0,105420.0,1.40691271]
[1748618372146,0.21815339,105430.0,105420.0,0.8677148]
[1748618372356,0.20866888,105430.0,105420.0,0.4475948]
[1748618372572,0.20866888,105430.0,105420.0,0.43305395]
[1748618374232,0.22466888,105430.0,105420.0,0.43305395]
[1748618374454,0.22466888,105430.0,105420.0,0.63824]
[1748618374672,0.22466888,105430.0,105420.0,0.342]
[1748618374885,0.24056888,105430.0,105420.0,0.342]
[1748618377499,0.24056888,105430.0,105420.0,0.002]
[1748618383986,0.20056888,105430.0,105420.0,0.002]
[1748618384440,0.18466888,105430.0,105420.0,0.002]
[1748618384696,0.16866888,105430.0,105420.0,0.0183]
[1748618385380,0.16866888,105430.0,105420.0,0.002]
[1748618386463,0.16866888,105430.0,105420.0,1.11079271]
[1748618386684,0.16866888,105430.0,105420.0,0.5715948]
[1748618386904,0.16866888,105430.0,105420.0,0.8678748]
[1748618391090,0.14973344,105440.0,105430.0,0.3715]
[1748618391527,0.14973344,105440.0,105430.0,0.34]
[1748618392371,0.14973344,105440.0,105430.0,0.3559]
[1748618397973,0.14973344,105440.0,105430.0,0.34]
[1748618400796,0.199203,105420.0,105410.0,0.3717]
[1748618400997,0.199203,105420.0,105410.0,0.12414]
[1748618401377,0.199203,105420.0,105410.0,0.09244]
[1748618401601,0.199203,105420.0,105410.0,0.10764]
[1748618401817,0.199203,105420.0,105410.0,0.46384]
[1748618402495,0.199203,105420.0,105410.0,0.46584]
[1748618402712,0.199203,105420.0,105410.0,0.46684]
[1748618403138,0.199203,105420.0,105410.0,0.46484]
[1748618403348,0.159203,105420.0,105410.0,0.46484]
[1748618403560,0.16868868,105420.0,105410.0,0.46584]
[1748618403795,0.17817427,105420.0,105410.0,1.11063271]
[1748618404252,0.16868868,105420.0,105410.0,1.11063271]
[1748618406293,0.16868868,105420.0,105410.0,0.8676748]
[1748618406507,0.16868868,105420.0,105410.0,1.40687271]
[1748618407459,0.21817355,105420.0,105410.0,1.40687271]
[1748618407694,0.22765932,105420.0,105410.0,1.40687271]
[1748618408453,0.00948514,105420.0,105410.0,1.59660802]
[1748618408680,0.20866879,105430.0,105420.0,0.04614085]
[1748618408916,0.20866879,105430.0,105420.0,0.6787639]
[1748618409138,0.20866879,105430.0,105420.0,0.67639271]
[1748618409613,0.20866879,105430.0,105420.0,0.1371948]
[1748618409874,0.20866879,105430.0,105420.0,0.40506]
[1748618410751,0.20866879,105430.0,105420.0,0.42036]
[1748618410970,0.16866879,105430.0,105420.0,0.42036]
[1748618411402,0.18763826,105430.0,105420.0,0.5259548]
[1748618412265,0.20866879,105430.0,105420.0,1.06515271]
[1748618414282,0.19916539,105440.0,105430.0,0.04544085]
[1748618414506,0.2181327,105440.0,105430.0,0.67699271]
[1748618416945,0.20864918,105440.0,105430.0,0.67699271]
[1748618420938,0.19916539,105440.0,105430.0,0.1221948]
[1748618421157,0.19916539,105440.0,105430.0,0.4191548]
[1748618421392,0.19916539,105440.0,105430.0,0.31364]
[1748618421608,0.1991841,105430.0,105420.0,0.65224]
[1748618421823,0.1991841,105430.0,105420.0,1.11819395]
[1748618422045,0.1991841,105430.0,105420.0,1.1327348]
[1748618422260,0.1991841,105430.0,105420.0,1.13429395]
[1748618422478,0.1991841,105430.0,105420.0,1.1488348]
[1748618422693,0.1991841,105430.0,105420.0,1.13429395]
[1748618422911,0.1991841,105430.0,105420.0,1.1498348]
[1748618423126,0.1591841,105430.0,105420.0,1.1508348]
[1748618423338,0.1591841,105430.0,105420.0,1.1347348]
[1748618423556,0.1591841,105430.0,105420.0,1.1508548]
[1748618424262,0.1591841,105430.0,105420.0,1.1666548]
[1748618424470,0.1591841,105430.0,105420.0,1.70585271]
[1748618424897,0.1591841,105430.0,105420.0,1.40875271]
[1748618425132,0.1591841,105430.0,105420.0,0.8695548]
[1748618427493,0.1591841,105430.0,105420.0,1.40875271]
[1748618427715,0.20866861,105430.0,105420.0,1.40875271]
[1748618428796,0.21815357,105430.0,105420.0,1.40875271]
[1748618429044,0.20866906,105430.0,105420.0,1.40875271]
[1748618430154,0.16866906,105430.0,105420.0,1.40875271]
[1748618430357,0.17815384,105430.0,105420.0,1.40875271]
[1748618430585,0.17815384,105430.0,105420.0,0.8695548]
[1748618430795,0.16866906,105430.0,105420.0,1.40875271]
[1748618431498,0.16866906,105430.0,105420.0,0.5405148]
[1748618431717,0.18476906,105430.0,105420.0,0.5405148]
[1748618432157,0.16866906,105430.0,105420.0,0.5405148]
[1748618432367,0.16866906,105430.0,105420.0,0.5724148]
[1748618432587,0.16866906,105430.0,105420.0,0.5568148]
[1748618433229,0.16866906,105430.0,105420.0,0.5732148]
[1748618437299,0.12866906,105430.0,105420.0,0.5732148]
[1748618440744,0.12866906,105430.0,105420.0,0.8555348]
[1748618443320,0.12866906,105430.0,105420.0,0.8720348]
[1748618444453,0.08866906,105430.0,105420.0,0.8720348]
[1748618444950,0.12036906,105430.0,105420.0,0.00204]
[1748618447179,0.10416906,105430.0,105420.0,0.00204]
[1748618447833,0.08866906,105430.0,105420.0,0.01814]
[1748618450774,0.08866906,105430.0,105420.0,0.4787348]
[1748618451451,0.04866906,105430.0,105420.0,0.4787348]
[1748618451690,0.04866906,105430.0,105420.0,0.8703748]
[1748618455123,0.04866906,105430.0,105420.0,0.8700148]
[1748618456613,0.04866906,105430.0,105420.0,0.8550148]
[1748618457083,0.04866906,105430.0,105420.0,0.4637348]
[1748618457364,0.04866906,105430.0,105420.0,0.8550948]
[1748618457990,0.04866906,105430.0,105420.0,0.8389948]
[1748618458231,0.04866906,105430.0,105420.0,0.8543948]
[1748618458439,0.00866906,105430.0,105420.0,0.8543948]
[1748618458648,0.19836838,105430.0,105420.0,0.8543948]
[1748618461037,0.19836838,105430.0,105420.0,0.5565548]
[1748618461451,0.23026838,105430.0,105420.0,0.43556]
[1748618461657,0.23026838,105430.0,105420.0,0.34204]
[1748618462752,0.23026838,105430.0,105420.0,0.00204]
[1748618463217,0.52818838,105430.0,105420.0,0.00204]
[1748618463684,0.52818838,105430.0,105420.0,0.00104]
[1748618464152,0.52818838,105430.0,105420.0,4e-05]
[1748618465622,0.53727335,105430.0,105420.0,4e-05]
[1748618466041,0.52860429,105430.0,105420.0,4e-05]
[1748618466688,0.61965824,105430.0,105420.0,4e-05]
[1748618469935,0.32173824,105430.0,105420.0,4e-05]
[1748618470144,0.49638429,105430.0,105420.0,4e-05]
[1748618470362,0.19878429,105430.0,105420.0,0.01644]
[1748618471285,0.18969932,105430.0,105420.0,0.01644]
[1748618471749,0.18969932,105430.0,105420.0,0.91203791]
[1748618472195,0.18969932,105430.0,105420.0,0.37284]
[1748618472851,0.18969932,105430.0,105420.0,0.34004]
[1748618473066,0.20609932,105430.0,105420.0,4e-05]
[1748618474611,0.18969932,105430.0,105420.0,4e-05]
[1748618474820,0.18969932,105430.0,105420.0,0.01574]
[1748618476021,0.18969932,105430.0,105420.0,0.37184]
[1748618477004,0.00948469,105430.0,105420.0,1.11015271]
[1748618477229,0.20866897,105430.0,105420.0,1.11015271]
[1748618477606,0.19918428,105430.0,105420.0,1.40767271]
[1748618479089,0.18969932,105430.0,105420.0,0.8684748]
[1748618481397,0.18969932,105430.0,105420.0,0.4774348]
[1748618481580,0.18969932,105430.0,105420.0,0.35574]
[1748618482688,0.18969932,105430.0,105420.0,0.37154]
[1748618489587,0.18969932,105430.0,105420.0,0.4645]
[1748618490705,0.18969932,105430.0,105420.0,0.5700948]
[1748618490926,0.03793822,105430.0,105420.0,1.10929271]
[1748618491137,0.2181533,105430.0,105420.0,1.10929271]
[1748618491779,0.20866879,105430.0,105420.0,1.10929271]
[1748618492196,0.20866879,105430.0,105420.0,0.5710948]
[1748618492435,0.20866879,105430.0,105420.0,0.5720948]
[1748618493069,0.16866879,105430.0,105420.0,0.5720948]
[1748618493273,0.17815339,105430.0,105420.0,0.5720948]
[1748618493926,0.16866879,105430.0,105420.0,0.5720948]